fUSD/lending_fUSD_20250223
["ID","MTS","AMOUNT","RATE_DAILY","PERIOD"]
[354210317,1740349850029,-1756.63,0.0001652,2]
[354210318,1740349850040,-986.27,0.0001652,2]
[354210319,1740349850051,-1157.96,0.0001652,2]
[354210320,1740349850063,-1377.1,0.0001652,2]
[354210321,1740349850074,-1016.26,0.0001652,2]
[354210322,1740349850086,-923.34,0.0001652,2]
[354210323,1740349850096,-500.0,0.0001652,2]
[354210324,1740349850108,-1532.84,0.0001652,2]
[354210325,1740349850118,-500.0,0.0001652,2]
[354210326,1740349850129,-500.0,0.0001652,2]
[354210327,1740349850140,-500.0,0.0001652,2]
[354210328,1740349850151,-1904.49,0.0001652,2]
[354210329,1740349850163,-500.0,0.0001652,2]
[354210330,1740349850174,-500.0,0.0001652,2]
[354210331,1740349850186,-500.0,0.0001652,2]
[354210332,1740349850197,-1326.46,0.0001652,2]
[354210333,1740349850208,-801.78,0.0001652,2]
[354210334,1740349850220,-612.54,0.0001652,2]
[354210335,1740349850231,-1334.47,0.0001652,2]
[354210336,1740349850242,-590.04,0.0001652,2]
[354210337,1740349850253,-1385.79,0.0001652,2]
[354210338,1740349850264,-500.0,0.0001652,2]
[354210339,1740349850275,-2494.38,0.0001652,2]
[354210340,1740349850286,-500.0,0.0001652,2]
[354210341,1740349850297,-519.44727587,0.0001652,2]
[354210342,1740349850308,-1090.53,0.0001652,2]
[354210343,1740349850319,-507.42,0.0001652,2]
[354210344,1740349850330,-500.0,0.0001652,2]
[354210345,1740349850341,-573.47,0.0001652,2]
[354210346,1740349850351,-500.0,0.0001652,2]
[354210347,1740349850362,-500.0,0.0001652,2]
[354210348,1740349850372,-1543.81,0.0001652,2]
[354210349,1740349850383,-1095.55,0.0001652,2]
[354210350,1740349850394,-649.03,0.0001652,2]
[354210351,1740349850404,-2049.23,0.0001652,2]
[354210352,1740349850415,-500.0,0.0001652,2]
[354210353,1740349850426,-646.72,0.0001652,2]
[354210354,1740349850437,-1521.96,0.0001652,2]
[354210355,1740349850447,-3220.12,0.0001652,2]
[354210356,1740349850458,-500.0,0.0001652,2]
[354210357,1740349850469,-360.30768287,0.0001652,2]
[354210358,1740349850479,-1456.53,0.0001652,2]
[354210359,1740349850490,-500.0,0.0001652,2]
[354210360,1740349850501,-1723.53,0.0001652,2]
[354210361,1740349850515,-500.0,0.0001652,2]
[354210362,1740349850526,-500.0,0.0001652,2]
[354210363,1740349850536,-2211.51,0.0001652,2]
[354210364,1740349850547,-2287.56,0.0001652,2]
[354210365,1740349850558,-1135.98,0.0001652,2]
[354210366,1740349850569,-743.91,0.0001652,2]
[354210367,1740349850580,-500.0,0.0001652,2]
[354210368,1740349850590,-500.0,0.0001652,2]
[354210369,1740349850601,-1305.88,0.0001652,2]
[354210370,1740349850611,-684.25,0.0001652,2]
[354210371,1740349850622,-3463.87,0.0001652,2]
[354210372,1740349850633,-500.0,0.0001652,2]
[354210373,1740349850643,-1527.29,0.0001652,2]
[354210374,1740349850654,-500.0,0.0001652,2]
[354210375,1740349850664,-500.0,0.0001652,2]
[354210376,1740349850674,-641.03,0.0001652,2]
[354210377,1740349850684,-1385.92,0.0001652,2]
[354210378,1740349850695,-3565.44,0.0001652,2]
[354210379,1740349850705,-500.0,0.0001652,2]
[354210380,1740349850716,-500.0,0.0001652,2]
[354210381,1740349850726,-500.0,0.0001652,2]
[354210382,1740349850737,-2201.89,0.0001652,2]
[354210383,1740349850747,-500.0,0.0001652,2]
[354210384,1740349850758,-798.67,0.0001652,2]
[354210385,1740349850768,-500.0,0.0001652,2]
[354210386,1740349850778,-3735.7,0.0001652,2]
[354210387,1740349850788,-503.8049377,0.0001652,2]
[354210388,1740349850799,-500.0,0.0001652,2]
[354210389,1740349850810,-2379.39,0.0001652,2]
[354210390,1740349850820,-2015.41,0.0001652,2]
[354210391,1740349850831,-1996.81,0.0001652,2]
[354210392,1740349850842,-1466.3,0.0001652,2]
[354210393,1740349850852,-2161.56,0.0001652,2]
[354210394,1740349850863,-640.38,0.0001652,2]
[354210395,1740349850873,-1420.45,0.0001652,2]
[354210396,1740349850884,-500.0,0.0001652,2]
[354210397,1740349850894,-500.0,0.0001652,2]
[354210398,1740349850905,-2440.94,0.0001652,2]
[354210399,1740349850916,-2120.49,0.0001652,2]
[354210400,1740349850927,-500.0,0.0001652,2]
[354210401,1740349850937,-833.49,0.0001652,2]
[354210402,1740349850948,-1351.27,0.0001652,2]
[354210403,1740349850958,-1892.36,0.0001652,2]
[354210404,1740349850968,-1018.29,0.0001652,2]
[354210405,1740349850979,-1914.53,0.0001652,2]
[354210406,1740349850989,-751.94,0.0001652,2]
[354210407,1740349851000,-500.0,0.0001652,2]
[354210408,1740349851011,-1825.966457,0.0001652,2]
[354210409,1740349851021,-1825.966457,0.0001652,2]
[354210410,1740349851032,-1195.11,0.0001652,2]
[354210411,1740349851042,-1825.966457,0.0001652,2]
[354210412,1740349851052,-1825.966457,0.0001652,2]
[354210413,1740349851062,-1825.966457,0.0001652,2]
[354210414,1740349851073,-2313.01,0.0001652,2]
[354210415,1740349851083,-1825.966457,0.0001652,2]
[354210416,1740349851093,-937.55,0.0001652,2]
[354210417,1740349851103,-1825.966457,0.0001652,2]
[354210418,1740349851114,-1825.966457,0.0001652,2]
[354210419,1740349851124,-1825.966457,0.0001652,2]
[354210420,1740349851135,-1825.966457,0.0001652,2]
[354210421,1740349851145,-1603.29,0.0001652,2]
[354210422,1740349851155,-2460.28,0.0001652,2]
[354210423,1740349851166,-2684.81,0.0001652,2]
[354210424,1740349851176,-500.0,0.0001652,2]
[354210425,1740349851186,-1639.9,0.0001652,2]
[354210426,1740349851197,-664.68,0.0001652,2]
[354210427,1740349851208,-500.0,0.0001652,2]
[354210428,1740349851218,-640.97,0.0001652,2]
[354210429,1740349851228,-500.0,0.0001652,2]
[354210430,1740349851238,-500.0,0.0001652,2]
[354210431,1740349851248,-912.606375,0.0001652,2]
[354210432,1740349851259,-151.0,0.0001652,2]
[354210433,1740349851268,-912.606375,0.0001652,2]
[354210434,1740349851279,-151.0,0.0001652,2]
[354210435,1740349851289,-912.606375,0.0001652,2]
[354210436,1740349851300,-151.0,0.0001652,2]
[354210437,1740349851310,-151.0,0.0001652,2]
[354210438,1740349851320,-151.0,0.0001652,2]
[354210439,1740349851330,-912.606375,0.0001652,2]
[354210440,1740349851340,-2460.9,0.0001652,2]
[354210441,1740349851351,-1461.34,0.0001652,2]
[354210442,1740349851361,-912.606375,0.0001652,2]
[354210443,1740349851372,-1119.51,0.0001652,2]
[354210444,1740349851382,-912.606375,0.0001652,2]
[354210445,1740349851392,-912.606375,0.0001652,2]
[354210446,1740349851403,-912.606375,0.0001652,2]
[354210447,1740349851413,-566.65,0.0001652,2]
[354210448,1740349851424,-912.606375,0.0001652,2]
[354210449,1740349851435,-1538.59,0.0001652,2]
[354210450,1740349851446,-878.9,0.0001652,2]
[354210451,1740349851457,-1824.04,0.0001652,2]
[354210452,1740349851468,-500.0,0.0001652,2]
[354210453,1740349851478,-1470.35,0.0001652,2]
[354210454,1740349851489,-500.0,0.0001652,2]
[354210455,1740349851499,-1582.89,0.0001652,2]
[354210456,1740349851515,-1847.63,0.0001652,2]
[354210457,1740349851525,-2678.53,0.0001652,2]
[354210458,1740349851537,-2214.133311,0.0001652,2]
[354210459,1740349851549,-2214.133311,0.0001652,2]
[354210460,1740349851558,-2214.133311,0.0001652,2]
[354210461,1740349851567,-2214.133311,0.0001652,2]
[354210462,1740349851576,-2214.133311,0.0001652,2]
[354210463,1740349851585,-769.48,0.0001652,2]
[354210464,1740349851595,-2214.133311,0.0001652,2]
[354210465,1740349851604,-500.0,0.0001652,2]
[354210466,1740349851613,-554.7,0.0001652,2]
[354210467,1740349851622,-2214.133311,0.0001652,2]
[354210468,1740349851631,-2214.133311,0.0001652,2]
[354210469,1740349851640,-2214.133311,0.0001652,2]
[354210470,1740349851650,-2214.133311,0.0001652,2]
[354210471,1740349851660,-1610.42,0.0001652,2]
[354210472,1740349851669,-995.83,0.0001652,2]
[354210473,1740349851680,-500.0,0.0001652,2]
[354210474,1740349851690,-1338.31,0.0001652,2]
[354210475,1740349851699,-1308.01,0.0001652,2]
[354210476,1740349851708,-1717.52,0.0001652,2]
[354210477,1740349851718,-3188.14,0.0001652,2]
[354210478,1740349851727,-185.762104,0.0001652,2]
[354210479,1740349851737,-3533.31,0.0001652,2]
[354210480,1740349851747,-503.86471118,0.0001652,2]
[354210481,1740349851756,-185.762104,0.0001652,2]
[354210482,1740349851765,-185.762104,0.0001652,2]
[354210483,1740349851774,-185.762104,0.0001652,2]
[354210484,1740349851784,-500.0,0.0001652,2]
[354210485,1740349851793,-185.762104,0.0001652,2]
[354210486,1740349851802,-500.0,0.0001652,2]
[354210487,1740349851811,-1861.78,0.0001652,2]
[354210488,1740349851820,-8417.52,0.0001652,2]
[354210489,1740349851829,-185.762104,0.0001652,2]
[354210490,1740349851838,-185.762104,0.0001652,2]
[354210491,1740349851847,-506.74172728,0.0001652,2]
[354210492,1740349852343,-185.762104,0.0001652,2]
[354210493,1740349852376,-185.762104,0.0001652,2]
[354210494,1740349852400,-2577.89,0.0001652,2]
[354210495,1740349852417,-500.0,0.0001652,2]
[354210496,1740349852426,-185.762104,0.0001652,2]
[354210497,1740349852437,-500.0,0.0001652,2]
[354210498,1740349852446,-500.0,0.0001652,2]
[354210499,1740349852456,-4381.0,0.0001652,2]
[354210500,1740349852466,-596.64,0.0001652,2]
[354210501,1740349852475,-2183.26,0.0001652,2]
[354210502,1740349852485,-1528.29,0.0001652,2]
[354210503,1740349852494,-537.74646989,0.0001652,2]
[354210504,1740349852504,-1092.71,0.0001652,2]
[354210505,1740349852515,-554.44,0.0001652,2]
[354210506,1740349852524,-1946.14,0.0001652,2]
[354210507,1740349852533,-500.0,0.0001652,2]
[354210508,1740349852542,-2935.59,0.0001652,2]
[354210509,1740349852553,-7337.03,0.0001652,2]
[354210510,1740349852562,-1364.9,0.0001652,2]
[354210511,1740349852571,-1174.78,0.0001652,2]
[354210512,1740349852581,-1276.51,0.0001652,2]
[354210513,1740349852590,-151.0,0.0001652,2]
[354210514,1740349852599,-500.0,0.0001652,2]
[354210515,1740349852608,-620.99,0.0001652,2]
[354210516,1740349852617,-151.0,0.0001652,2]
[354210517,1740349852626,-151.0,0.0001652,2]
[354210518,1740349852635,-151.0,0.0001652,2]
[354210519,1740349852644,-151.0,0.0001652,2]
[354210520,1740349852653,-1306.34,0.0001652,2]
[354210521,1740349852662,-932.88,0.0001652,2]
[354210522,1740349852673,-2300.34,0.0001652,2]
[354210523,1740349852684,-980.06,0.0001652,2]
[354210524,1740349852694,-1469.11,0.0001652,2]
[354210525,1740349852703,-544.26,0.0001652,2]
[354210526,1740349852713,-2856.88,0.0001652,2]
[354210527,1740349852722,-575.2004674,0.0001652,2]
[354210528,1740349852732,-4641.82,0.0001652,2]
[354210529,1740349852742,-500.0,0.0001652,2]
[354210530,1740349852751,-500.0,0.0001652,2]
[354210531,1740349852760,-2638.63,0.0001652,2]
[354210532,1740349852770,-3029.62,0.0001652,2]
[354210533,1740349852779,-500.0,0.0001652,2]
[354210534,1740349852788,-2673.9,0.0001652,2]
[354210535,1740349852797,-2440.09,0.0001652,2]
[354210536,1740349852807,-500.0,0.0001652,2]
[354210537,1740349852816,-612.94,0.0001652,2]
[354210538,1740349852825,-500.0,0.0001652,2]
[354210539,1740349852835,-3094.41,0.0001652,2]
[354210540,1740349852845,-2414.59,0.0001652,2]
[354210541,1740349852854,-500.0,0.0001652,2]
[354210542,1740349852865,-500.0,0.0001652,2]
[354210543,1740349852875,-2972.96,0.0001652,2]
[354210544,1740349852884,-693.42,0.0001652,2]
[354210545,1740349852893,-1574.92,0.0001652,2]
[354210546,1740349852903,-1174.07,0.0001652,2]
[354210547,1740349852912,-5022.74,0.0001652,2]
[354210548,1740349852921,-647.87,0.0001652,2]
[354210549,1740349852931,-500.0,0.0001652,2]
[354210550,1740349852940,-500.0,0.0001652,2]
[354210551,1740349852950,-906.72,0.0001652,2]
[354210552,1740349852959,-796.67,0.0001652,2]
[354210553,1740349852968,-500.0,0.0001652,2]
[354210554,1740349852977,-500.0,0.0001652,2]
[354210555,1740349852986,-500.0,0.0001652,2]
[354210556,1740349852995,-500.0,0.0001652,2]
[354210557,1740349853004,-5290.33,0.0001652,2]
[354210558,1740349853013,-1436.11,0.0001652,2]
[354210559,1740349853024,-500.0,0.0001652,2]
[354210560,1740349853034,-1349.8,0.0001652,2]
[354210561,1740349853043,-6290.39,0.0001652,2]
[354210562,1740349853052,-758.05,0.0001652,2]
[354210563,1740349853061,-2671.9,0.0001652,2]
[354210564,1740349853070,-2196.52,0.0001652,2]
[354210565,1740349853079,-5756.72,0.0001652,2]
[354210566,1740349853088,-4403.16,0.0001652,2]
[354210567,1740349853097,-5706.29,0.0001652,2]
[354210568,1740349853107,-2749.58,0.0001652,2]
[354210569,1740349853115,-526.21,0.0001652,2]
[354210570,1740349853125,-555.29,0.0001652,2]
[354210571,1740349853134,-500.0,0.0001652,2]
[354210572,1740349853144,-2415.31,0.0001652,2]
[354210573,1740349853154,-500.0,0.0001652,2]
[354210574,1740349853164,-500.0,0.0001652,2]
[354210575,1740349853174,-1418.97,0.0001652,2]
[354210576,1740349853183,-3407.13,0.0001652,2]
[354210577,1740349853192,-4562.56,0.0001652,2]
[354210578,1740349853202,-500.0,0.0001652,2]
[354210579,1740349853212,-4059.09,0.0001652,2]
[354210580,1740349853220,-760.69,0.0001652,2]
[354210581,1740349853229,-1428.34,0.0001652,2]
[354210582,1740349853238,-874.66,0.0001652,2]
[354210583,1740349853247,-2154.67,0.0001652,2]
[354210584,1740349853256,-4107.53,0.0001652,2]
[354210585,1740349853266,-1576.33,0.0001652,2]
[354210586,1740349853275,-1748.41,0.0001652,2]
[354210587,1740349853284,-500.0,0.0001652,2]
[354210588,1740349853294,-17475.75,0.0001652,2]
[354210589,1740349853303,-500.0,0.0001652,2]
[354210590,1740349853312,-4070.64,0.0001652,2]
[354210591,1740349853322,-295.85221513,0.0001652,2]
[354210592,1740349853331,-2786.27,0.0001652,2]
[354210593,1740349853340,-3159.81,0.0001652,2]
[354210594,1740349853349,-924.33,0.0001652,2]
[354210595,1740349853358,-2272.18,0.0001652,2]
[354210596,1740349853367,-709.02,0.0001652,2]
[354210597,1740349853376,-1525.63,0.0001652,2]
[354210598,1740349853385,-3619.7,0.0001652,2]
[354210599,1740349853395,-4642.12,0.0001652,2]
[354210600,1740349853404,-1679.7,0.0001652,2]
[354210601,1740349853413,-500.0,0.0001652,2]
[354210602,1740349853422,-4720.68,0.0001652,2]
[354210603,1740349853431,-1571.13,0.0001652,2]
[354210604,1740349853440,-3290.16,0.0001652,2]
[354210605,1740349853450,-3917.01,0.0001652,2]
[354210606,1740349853459,-1753.32,0.0001652,2]
[354210607,1740349853468,-4787.87,0.0001652,2]
[354210608,1740349853478,-2096.04,0.0001652,2]
[354210609,1740349853487,-3809.91,0.0001652,2]
[354210610,1740349853496,-683.81,0.0001652,2]
[354210611,1740349853509,-2412.36,0.0001652,2]
[354210612,1740349853518,-156.00286927,0.0001652,2]
[354210613,1740349853527,-4433.62,0.0001652,2]
[354210614,1740349853538,-645.38,0.0001652,2]
[354210615,1740349853547,-1929.52,0.0001652,2]
[354210616,1740349853558,-500.0,0.0001652,2]
[354210617,1740349853568,-2294.55,0.0001652,2]
[354210618,1740349853579,-1697.61,0.0001652,2]
[354210619,1740349853588,-3462.11,0.0001652,2]
[354210620,1740349853598,-707.43,0.0001652,2]
[354210621,1740349853607,-5621.54,0.0001652,2]
[354210622,1740349853618,-3914.54,0.0001652,2]
[354210623,1740349853628,-4223.13,0.0001652,2]
[354210624,1740349853638,-2913.24,0.0001652,2]
[354210625,1740349853647,-500.0,0.0001652,2]
[354210626,1740349853658,-3601.17,0.0001652,2]
[354210627,1740349853668,-500.0,0.0001652,2]
[354210628,1740349853678,-500.0,0.0001652,2]
[354210629,1740349853688,-500.0,0.0001652,2]
[354210630,1740349853698,-4814.39,0.0001652,2]
[354210631,1740349853707,-1208.42,0.0001652,2]
[354210632,1740349853716,-2154.42,0.0001652,2]
[354210633,1740349853726,-7088.97,0.0001652,2]
[354210634,1740349853735,-303.70646975,0.0001652,2]
[354210635,1740349853745,-500.0,0.0001652,2]
[354210636,1740349853755,-2016.18,0.0001652,2]
[354210637,1740349853764,-500.0,0.0001652,2]
[354210638,1740349853774,-3404.92,0.0001652,2]
[354210639,1740349853784,-500.0,0.0001652,2]
[354210640,1740349853793,-500.0,0.0001652,2]
[354210641,1740349853806,-5139.97,0.0001652,2]
[354210642,1740349853815,-500.0,0.0001652,2]
[354210643,1740349853825,-4721.46,0.0001652,2]
[354210644,1740349853835,-500.0,0.0001652,2]
[354210645,1740349853845,-4384.06,0.0001652,2]
[354210646,1740349853854,-500.0,0.0001652,2]
[354210647,1740349853864,-1606.48,0.0001652,2]
[354210648,1740349853874,-4219.29,0.0001652,2]
[354210649,1740349853883,-500.0,0.0001652,2]
[354210650,1740349853893,-2226.1,0.0001652,2]
[354210651,1740349853903,-703.07,0.0001652,2]
[354210652,1740349853914,-500.0,0.0001652,2]
[354210653,1740349853926,-3249.4,0.0001652,2]
[354210654,1740349853937,-500.0,0.0001652,2]
[354210655,1740349853947,-500.0,0.0001652,2]
[354210656,1740349853957,-500.0,0.0001652,2]
[354210657,1740349853967,-1604.38,0.0001652,2]
[354210658,1740349853978,-5239.84,0.0001652,2]
[354210659,1740349853988,-2505.1,0.0001652,2]
[354210660,1740349853997,-585.37,0.0001652,2]
[354210661,1740349854007,-1246.44,0.0001652,2]
[354210662,1740349854016,-2941.8,0.0001652,2]
[354210663,1740349854025,-1295.66,0.0001652,2]
[354210664,1740349854036,-5072.55,0.0001652,2]
[354210665,1740349854045,-1387.21,0.0001652,2]
[354210666,1740349854056,-9201.19,0.0001652,2]
[354210667,1740349854067,-3681.18,0.0001652,2]
[354210668,1740349854077,-2612.84,0.0001652,2]
[354210669,1740349854087,-3774.54,0.0001652,2]
[354210670,1740349854096,-518.50621479,0.0001652,2]
[354210671,1740349854105,-948.51,0.0001652,2]
[354210672,1740349854115,-500.0,0.0001652,2]
[354210673,1740349854124,-156.307304,0.0001652,2]
[354210674,1740349854133,-3562.07,0.0001652,2]
[354210675,1740349854143,-156.307304,0.0001652,2]
[354210676,1740349854152,-156.307304,0.0001652,2]
[354210677,1740349854161,-156.307304,0.0001652,2]
[354210678,1740349854170,-6253.12,0.0001652,2]
[354210679,1740349854180,-156.307304,0.0001652,2]
[354210680,1740349854190,-1983.96,0.0001652,2]
[354210681,1740349854199,-156.307304,0.0001652,2]
[354210682,1740349854209,-930.43,0.0001652,2]
[354210683,1740349854218,-156.307304,0.0001652,2]
[354210684,1740349854227,-156.307304,0.0001652,2]
[354210685,1740349854236,-156.307304,0.0001652,2]
[354210686,1740349854246,-156.307304,0.0001652,2]
[354210687,1740349854266,-156.307304,0.0001652,2]
[354210688,1740349854276,-526.95,0.0001652,2]
[354210689,1740349854287,-156.307308,0.0001652,2]
[354210690,1740349854297,-500.0,0.0001652,2]
[354210691,1740349854310,-1344.51,0.0001652,2]
[354210692,1740349854320,-500.0,0.0001652,2]
[354210693,1740349854330,-1412.39,0.0001652,2]
[354210694,1740349854340,-4716.74,0.0001652,2]
[354210695,1740349854349,-4536.23,0.0001652,2]
[354210696,1740349854359,-5993.06,0.0001652,2]
[354210697,1740349854369,-500.0,0.0001652,2]
[354210698,1740349854379,-500.0,0.0001652,2]
[354210699,1740349854389,-500.0,0.0001652,2]
[354210700,1740349854398,-1885.48,0.0001652,2]
[354210701,1740349854408,-500.0,0.0001652,2]
[354210702,1740349854418,-500.0,0.0001652,2]
[354210703,1740349854428,-3143.69,0.0001652,2]
[354210704,1740349854437,-3479.65,0.0001652,2]
[354210705,1740349854447,-151.0,0.0001652,2]
[354210706,1740349854457,-151.0,0.0001652,2]
[354210707,1740349854466,-500.0,0.0001652,2]
[354210708,1740349854476,-6049.51,0.0001652,2]
[354210709,1740349854486,-1400.03,0.0001652,2]
[354210710,1740349854496,-500.0,0.0001652,2]
[354210711,1740349854509,-4633.59,0.0001652,2]
[354210712,1740349854518,-3476.34,0.0001652,2]
[354210713,1740349854528,-3140.36,0.0001652,2]
[354210714,1740349854537,-335.63508369,0.0001652,2]
[354210715,1740349854547,-500.0,0.0001652,2]
[354210716,1740349854557,-500.0,0.0001652,2]
[354210717,1740349854567,-500.0,0.0001652,2]
[354210718,1740349854578,-500.0,0.0001652,2]
[354210719,1740349854589,-2481.53,0.0001652,2]
[354210720,1740349854599,-8851.15,0.0001652,2]
[354210721,1740349854608,-500.0,0.0001652,2]
[354210722,1740349854618,-635.80833194,0.0001652,2]
[354210723,1740349854628,-500.0,0.0001652,2]
[354210724,1740349854637,-500.0,0.0001652,2]
[354210725,1740349854647,-2581.76,0.0001652,2]
[354210726,1740349854657,-151.0,0.0001652,2]
[354210727,1740349854667,-2181.78,0.0001652,2]
[354210728,1740349854676,-500.0,0.0001652,2]
[354210729,1740349854686,-500.0,0.0001652,2]
[354210730,1740349854695,-523.51396681,0.0001652,2]
[354210731,1740349854705,-2756.2,0.0001652,2]
[354210732,1740349854714,-500.0,0.0001652,2]
[354210733,1740349854724,-500.0,0.0001652,2]
[354210734,1740349854733,-500.0,0.0001652,2]
[354210735,1740349854743,-1745.58,0.0001652,2]
[354210736,1740349854753,-3980.89,0.0001652,2]
[354210737,1740349854763,-500.0,0.0001652,2]
[354210738,1740349854772,-5532.19,0.0001652,2]
[354210739,1740349854994,-657.2,0.0001652,2]
[354210740,1740349855009,-2341.48,0.0001652,2]
[354210741,1740349855018,-500.0,0.0001652,2]
[354210742,1740349855028,-500.0,0.0001652,2]
[354210743,1740349855037,-4890.16,0.0001652,2]
[354210744,1740349855046,-667.62,0.0001652,2]
[354210745,1740349855056,-500.0,0.0001652,2]
[354210746,1740349855065,-500.0,0.0001652,2]
[354210747,1740349855074,-2345.07,0.0001652,2]
[354210748,1740349855083,-500.0,0.0001652,2]
[354210749,1740349855092,-500.0,0.0001652,2]
[354210750,1740349855101,-1229.42,0.0001652,2]
[354210751,1740349855111,-517.65,0.0001652,2]
[354210752,1740349855120,-1325.19,0.0001652,2]
[354210753,1740349855129,-500.67,0.0001652,2]
[354210754,1740349855138,-973.9,0.0001652,2]
[354210755,1740349855147,-500.0,0.0001652,2]
[354210756,1740349855156,-500.0,0.0001652,2]
[354210757,1740349855167,-500.0,0.0001652,2]
[354210758,1740349855176,-500.0,0.0001652,2]
[354210759,1740349855185,-3825.62,0.0001652,2]
[354210760,1740349855195,-644.39,0.0001652,2]
[354210761,1740349855204,-5219.19,0.0001652,2]
[354210762,1740349855214,-3401.5,0.0001652,2]
[354210763,1740349855223,-1228.65,0.0001652,2]
[354210764,1740349855232,-500.0,0.0001652,2]
[354210765,1740349855241,-9468.28,0.0001652,2]
[354210766,1740349855251,-1584.73,0.0001652,2]
[354210767,1740349855260,-500.0,0.0001652,2]
[354210768,1740349855269,-500.0,0.0001652,2]
[354210769,1740349855278,-500.0,0.0001652,2]
[354210770,1740349855287,-500.0,0.0001652,2]
[354210771,1740349855296,-500.0,0.0001652,2]
[354210772,1740349855305,-10150.77483255,0.00016521,2]
[354210773,1740349855316,-150.0,0.00016522,2]
[354210774,1740349855325,-150.0,0.00016526,2]
[354210775,1740349855334,-150.0,0.00016531,2]
[354210776,1740349855343,-180.134,0.00016536,2]
[354210777,1740349855352,-193.424,0.00016536,2]
[354210778,1740349855361,-150.0,0.00016537,2]
[354210779,1740349855371,-730.7,0.00016547,2]
[354210780,1740349855380,-1000.0,0.00016547,2]
[354210781,1740349855388,-151.0,0.00016548,2]
[354210782,1740349855398,-151.0,0.00016548,2]
[354210783,1740349855407,-595.614657,0.00016548,2]
[354210784,1740349855416,-595.614657,0.00016548,2]
[354210785,1740349855425,-162.77486,0.00016548,2]
[354210786,1740349855434,-200.215613,0.00016548,2]
[354210787,1740349855443,-563058.92055982,0.00016548,2]
[354210788,1740349855452,-1825.966457,0.00016548,2]
[354210789,1740349855461,-1825.966463,0.00016548,2]
[354210790,1740349855470,-151.0,0.00016548,2]
[354210791,1740349855479,-2214.133311,0.00016548,2]
[354210792,1740349855489,-2214.133315,0.00016548,2]
[354210793,1740349855499,-185.762104,0.00016548,2]
[354210794,1740349855511,-185.7621,0.00016548,2]
[354210795,1740349855521,-151.0,0.00016548,2]
[354210796,1740349855531,-912.606375,0.00016549,2]
[354210797,1740349855540,-912.606375,0.00016549,2]
[354210798,1740349855549,-150.0,0.00016549,2]
[354210799,1740349855559,-1000.0,0.00016552,2]
[354210800,1740349855567,-491.98655844,0.00016552,2]
[354210801,1740349855577,-150.0,0.00016553,2]
[354210802,1740349855587,-150.0,0.00016554,2]
[354210803,1740349855596,-10150.77483255,0.00016557,2]
[354210804,1740349855606,-150.0,0.00016572,2]
[354210805,1740349855615,-500.0,0.00016573,2]
[354210806,1740349855624,-501.93254454,0.00016573,2]
[354210807,1740349855633,-576.7436931,0.00016573,2]
[354210808,1740349855643,-158.49865138,0.00016573,2]
[354210809,1740349855652,-420.99093227,0.00016573,2]
[354210810,1740349855661,-1000.0,0.00016574,2]
[354210811,1740349855671,-150.0,0.00016574,2]
[354210812,1740349855680,-150.0,0.00016575,2]
[354210813,1740349855689,-150.0,0.00016586,2]
[354210814,1740349855698,-6067.3275689,0.00016591,2]
[354210815,1740349855708,-3630.2667225,0.00016591,2]
[354210816,1740349855718,-2572.6067779,0.00016591,2]